bitfinex-derivatives/quotes_ETHF0:USTF0_20230830
["timestamp","ask_amount","ask_price","bid_price","bid_amount"]
[1693355740509,3.77978221,1730.4,1730.3,5.202]
[1693355740807,3.2078,1730.5,1730.3,5.202]
[1693355740999,8.2095,1730.5,1730.3,5.202]
[1693355741203,13.4115,1730.5,1730.2,5.202]
[1693355741405,3.02331735,1730.3,1730.2,5.202]
[1693355742004,3.02331735,1730.3,1730.1,5.202]
[1693355744611,6.23111735,1730.3,1730.1,5.202]
[1693355744806,3.2078,1730.3,1730.1,5.202]
[1693355745006,3.02331735,1730.4,1730.2,5.202]
[1693355745211,3.02331735,1730.4,1730.3,5.202]
[1693355745406,11.23281735,1730.5,1730.3,6.63558176]
[1693355745615,11.23281735,1730.5,1730.4,5.202]
[1693355745913,11.23057697,1730.5,1730.4,5.202]
[1693355748417,8.02277697,1730.5,1730.4,6.63558176]
[1693355750214,8.02277697,1730.5,1730.4,5.202]
[1693355751711,5.0017,1730.5,1730.4,5.202]
[1693355752319,5.0017,1730.5,1730.4,6.63558176]
[1693355753809,5.0017,1730.5,1730.4,5.202]
[1693355757811,8.2095,1730.5,1730.4,5.202]
[1693355761322,8.2095,1730.5,1730.3,10.2951]
[1693355763425,5.0017,1730.5,1730.3,10.2951]
[1693355764722,5.0017,1730.5,1730.3,11.72868176]
[1693355769732,8.02277697,1730.5,1730.3,11.72868176]
[1693355770330,5.202,1730.4,1730.3,2.4431]
[1693355770531,5.202,1730.4,1730.1,7.804]
[1693355770532,8.22073562,1730.4,1730.1,7.804]
[1693355770727,8.22073562,1730.4,1730.1,10.2489]
[1693355771237,3.2078,1730.3,1730.1,10.2489]
[1693355773537,8.22073562,1730.4,1730.1,10.2489]
[1693355778341,3.01873562,1730.3,1730.1,10.2489]
[1693355779341,3.01873562,1730.3,1730.1,11.68248176]
[1693355781443,3.01873562,1730.2,1730.1,11.68248176]
[1693355781646,3.01873562,1730.2,1730.1,22.78105755]
[1693355782342,3.77341953,1730.2,1730.1,11.09930496]
[1693355782551,18.57800027,1730.3,1730.0,0.00866952]
[1693355782743,3.2078,1730.1,1730.0,0.00866952]
[1693355783251,5.2461,1730.1,1730.0,0.00866952]
[1693355783541,8.4539,1730.1,1730.0,0.00866952]
[1693355786343,5.2461,1730.1,1730.0,0.00866952]
[1693355786552,5.8595,1730.1,1730.0,0.00866952]
[1693355786852,8.3664,1730.1,1730.0,0.00866952]
[1693355787444,12.89450343,1730.1,1730.0,0.00866952]
[1693355787743,8.3664,1730.1,1730.0,0.00866952]
[1693355788451,12.90920117,1730.1,1730.0,0.00866952]
[1693355788749,18.11120117,1730.1,1730.0,0.00866952]
[1693355789139,18.11120117,1730.1,1729.8,5.1994]
[1693355789343,3.78502826,1729.9,1729.8,5.1994]
[1693355789537,3.78502826,1729.9,1729.8,16.30021891]
[1693355790447,3.78502826,1729.9,1729.8,11.10081891]
[1693355790642,3.78502826,1729.9,1729.7,5.65911377]
[1693355790847,3.02739821,1729.8,1729.7,5.65911377]
[1693355791042,3.02739821,1729.8,1729.7,16.75991302]
[1693355791843,3.02739821,1729.8,1729.7,18.19349478]
[1693355792244,3.02739821,1729.8,1729.7,16.75991302]
[1693355794950,3.02739821,1729.8,1729.7,18.19349478]
[1693355795557,8.4098,1729.8,1729.4,5.202]
[1693355795753,3.02431635,1729.5,1729.4,10.2653]
[1693355796851,6.23211635,1729.6,1729.4,10.2653]
[1693355797348,3.02431635,1729.5,1729.4,10.2653]
[1693355797546,3.02431635,1729.5,1729.4,11.69888176]
[1693355797748,3.02431635,1729.6,1729.4,11.69888176]
[1693355798352,3.02431635,1729.7,1729.5,7.47193648]
[1693355798554,3.02431635,1729.7,1729.6,1.43358176]
[1693355799157,2.44611635,1729.7,1729.6,1.43358176]
[1693355799661,2.44611635,1729.7,1729.5,7.47193648]
[1693355801159,7.64811635,1729.7,1729.4,10.2653]
[1693355801362,10.22211635,1729.7,1729.4,10.2653]
[1693355802458,7.776,1729.7,1729.4,10.2653]
[1693355805454,7.776,1729.7,1729.5,1.43358176]
[1693355807959,7.776,1729.7,1729.4,12.53523648]
[1693355809157,7.776,1729.7,1729.4,10.2653]
[1693355810163,8.2319372,1729.7,1729.4,10.2653]
[1693355811961,5.202,1729.6,1729.4,5.0633]
[1693355813659,5.202,1729.6,1729.4,8.76681824]
[1693355817267,0.4559372,1729.7,1729.5,5.202]
[1693355817458,3.2078,1729.8,1729.6,8.90551824]
[1693355817661,3.2078,1729.8,1729.6,7.47193648]
[1693355818063,3.2078,1729.8,1729.7,1.43358176]
[1693355818465,5.41830504,1729.9,1729.7,1.43358176]
[1693355821772,5.41830504,1729.9,1729.6,7.47193648]
[1693355821974,10.62030504,1729.9,1729.6,7.47193648]
[1693355822368,5.202,1729.7,1729.4,10.2653]
[1693355822877,10.2534,1729.7,1729.4,10.2653]
[1693355824168,10.2534,1729.7,1729.4,10.7254301]
[1693355824574,10.2534,1729.7,1729.4,12.99536658]
[1693355826076,14.02946769,1729.7,1729.4,12.99536658]
[1693355826278,10.2534,1729.7,1729.4,12.99536658]
[1693355826479,5.202,1729.6,1729.4,7.79336658]
[1693355829274,8.22789887,1729.6,1729.4,7.79336658]
[1693355829776,3.02589887,1729.5,1729.4,7.79336658]
[1693355829981,3.02589887,1729.5,1729.4,9.22694834]
[1693355832377,5.202,1729.6,1729.4,9.22694834]
[1693355832583,3.02716148,1729.5,1729.4,9.22694834]
[1693355833679,3.02716148,1729.5,1729.4,7.79336658]
[1693355833881,3.02716148,1729.5,1729.4,5.5234301]
[1693355834276,8.98595185,1729.6,1729.4,5.5234301]
[1693355834675,3.78395185,1729.5,1729.4,5.5234301]
[1693355835484,3.78395185,1729.5,1729.4,6.95701186]
[1693355838082,5.66019115,1729.6,1729.4,6.95701186]
[1693355838786,10.20093337,1729.6,1729.4,6.95701186]
[1693355839483,5.66019115,1729.6,1729.4,6.95701186]
[1693355839685,10.20093337,1729.6,1729.4,6.95701186]
[1693355840890,4.54074222,1729.5,1729.4,6.49688176]
[1693355841089,4.54074222,1729.5,1729.4,5.0633]
[1693355843884,4.54074222,1729.5,1729.4,6.49688176]
[1693355844392,4.54074222,1729.5,1729.4,5.0633]
[1693355844789,14.16552374,1729.6,1729.4,5.0633]
[1693355845389,4.54982874,1729.5,1729.4,5.0633]
[1693355845789,4.54982874,1729.5,1729.4,6.49688176]
[1693355846085,4.54982874,1729.5,1729.3,2.26993648]
[1693355846086,9.75182874,1729.5,1729.3,2.26993648]
[1693355846289,14.84952874,1729.5,1729.2,13.98953201]
[1693355846481,4.54982874,1729.4,1729.2,13.98953201]
[1693355846789,4.54982874,1729.4,1729.2,15.42311377]
[1693355847791,5.202,1729.3,1729.2,5.7047]
[1693355849991,5.202,1729.3,1729.2,2.4969]
[1693355850392,5.202,1729.3,1729.1,0.47062361]
[1693355850591,7.6513,1729.3,1729.1,2.6292]
[1693355851894,10.1172,1729.3,1729.1,2.6292]
[1693355852297,3.79094408,1729.2,1729.1,2.6292]
[1693355852896,3.79094408,1729.2,1729.1,4.06278176]
[1693355853298,3.79094408,1729.2,1729.1,9.26478176]
[1693355853995,3.03281054,1729.2,1729.1,10.77927261]
[1693355856591,3.03281054,1729.2,1729.1,9.34569085]
[1693355856893,3.03281054,1729.2,1729.1,10.77927261]
[1693355857994,3.03281054,1729.2,1729.1,13.98707261]
[1693355859995,3.79094408,1729.3,1729.1,13.98707261]
[1693355860200,3.79094408,1729.3,1729.2,5.202]
[1693355861400,3.79094408,1729.3,1729.2,7.47193648]
[1693355862102,5.00215694,1729.4,1729.2,7.47193648]
[1693355862700,0.4523282,1729.4,1729.2,7.47193648]
[1693355862902,9.62932874,1729.5,1729.3,9.84338176]
[1693355863101,4.54982874,1729.5,1729.4,2.26993648]
[1693355863402,3.97152874,1729.5,1729.4,2.26993648]
[1693355865002,10.95772374,1729.6,1729.4,2.26993648]
[1693355869200,10.49953259,1729.6,1729.4,2.26993648]
[1693355870207,10.49953259,1729.6,1729.5,3.2078]
[1693355870602,10.49953259,1729.6,1729.5,4.64138176]
[1693355871896,5.29753259,1729.6,1729.5,4.64138176]
[1693355876710,10.49953259,1729.6,1729.3,5.8485]
[1693355876911,5.29753259,1729.5,1729.3,5.8485]
[1693355877399,4.9706,1729.5,1729.3,5.8485]
[1693355877907,4.9706,1729.5,1729.3,7.28208176]
[1693355878307,4.55088398,1729.4,1729.3,7.28208176]
[1693355879610,9.52148398,1729.5,1729.3,7.28208176]
[1693355879810,4.55088398,1729.4,1729.3,7.28208176]
[1693355880109,9.52148398,1729.5,1729.3,7.28208176]
[1693355880512,4.55088398,1729.4,1729.3,7.28208176]
[1693355880704,9.52148398,1729.5,1729.3,12.48408176]
[1693355880906,4.55088398,1729.5,1729.4,5.202]
[1693355881211,4.55088398,1729.5,1729.4,7.47193648]
[1693355884312,5.29753259,1729.5,1729.4,7.47193648]
[1693355884911,5.29753259,1729.6,1729.4,7.47193648]
[1693355885113,5.29753259,1729.5,1729.4,7.47193648]
[1693355886213,5.29753259,1729.6,1729.4,7.47193648]
[1693355886408,5.29753259,1729.6,1729.3,3.2078]
[1693355886409,10.49953259,1729.5,1729.3,3.2078]
[1693355886614,4.55113732,1729.4,1729.3,3.2078]
[1693355888413,4.55113732,1729.4,1729.2,5.67519538]
[1693355888414,5.29753259,1729.4,1729.2,5.67519538]
[1693355888717,4.55130274,1729.3,1729.2,5.67519538]
[1693355890419,4.55130274,1729.3,1729.2,7.10877714]
[1693355890721,3.97300274,1729.3,1729.2,7.10877714]
[1693355890915,3.39470274,1729.3,1729.2,7.10877714]
[1693355891417,15.06133259,1729.5,1729.2,7.10877714]
[1693355893217,15.06133259,1729.5,1729.2,9.64717714]
[1693355895020,0.57778461,1729.3,1729.2,9.64717714]
[1693355896722,15.0608172,1729.5,1729.2,9.64717714]
[1693355896919,16.1138979,1729.5,1729.2,9.64717714]
[1693355902318,16.1138979,1729.5,1729.3,2.26993648]
[1693355902527,16.1138979,1729.5,1729.3,5.47773648]
[1693355903719,16.1138979,1729.5,1729.3,3.2078]
[1693355904929,13.1138979,1729.5,1729.3,5.47773648]
[1693355905226,13.1138979,1729.5,1729.4,1.43358176]
[1693355905429,0.47426531,1729.5,1729.4,9.20418176]
[1693355905728,5.29753259,1729.6,1729.4,9.20418176]
[1693355905928,5.29753259,1729.6,1729.5,8.4098]
[1693355906127,4.71933259,1729.6,1729.5,10.67973648]
[1693355906327,0.46514532,1729.7,1729.5,10.67973648]
[1693355906529,4.54829421,1729.6,1729.5,10.67973648]
[1693355906723,4.54829421,1729.6,1729.5,13.22843648]
[1693355907129,4.54829421,1729.6,1729.5,14.66201824]
[1693355915533,4.54774485,1729.6,1729.5,14.66201824]
[1693355919635,4.54774485,1729.6,1729.3,4.3641]
[1693355919835,8.4098,1729.4,1728.9,2.27341455]
[1693355920040,6.03472813,1729.7,1728.7,5.202]
[1693355920041,8.4098,1729.0,1728.7,5.202]
[1693355920236,4.54673841,1728.9,1728.8,1.43358176]
[1693355920536,18.26106656,1729.0,1728.8,1.43358176]
[1693355920744,4.54673841,1728.9,1728.8,1.43358176]
[1693355921330,4.54673841,1728.9,1728.8,6.63558176]
[1693355921535,7.75453841,1729.0,1728.8,9.13738176]
[1693355922541,7.75453841,1729.0,1728.8,7.7038]
[1693355923034,7.75453841,1729.0,1728.9,1.43358176]
[1693355923235,7.75453841,1729.0,1728.8,7.7038]
[1693355923441,3.2078,1729.0,1728.8,7.7038]
[1693355923644,3.2078,1729.0,1728.8,9.13738176]
[1693355924437,3.78096567,1728.9,1728.8,9.13738176]
[1693355926437,6.98876567,1729.0,1728.8,9.13738176]
[1693355927037,3.78096567,1728.9,1728.8,9.13738176]
[1693355927437,3.02345435,1728.9,1728.8,9.13738176]
[1693355930255,3.02345435,1729.0,1728.8,9.13738176]
[1693355930457,2.26692299,1728.9,1728.8,3.93538176]
[1693355930658,3.02345435,1728.9,1728.8,9.13738176]
[1693355931156,3.02345435,1728.9,1728.8,11.40731824]
[1693355931356,6.23125435,1729.0,1728.8,11.40731824]
[1693355932253,5.202,1728.9,1728.8,2.5018]
[1693355932555,7.46907972,1728.9,1728.8,2.5018]
[1693355932953,7.46910037,1728.9,1728.8,2.5018]
[1693355934050,5.202,1728.9,1728.8,2.5018]
[1693355934556,7.46867543,1728.9,1728.8,2.5018]
[1693355934859,8.22545435,1728.9,1728.8,2.5018]
[1693355935257,5.202,1728.9,1728.8,2.5018]
[1693355935557,7.46843285,1728.9,1728.8,3.93538176]
[1693355935765,7.4684365,1728.9,1728.8,2.5018]
[1693355936059,5.202,1728.9,1728.8,2.5018]
[1693355936259,7.46823465,1728.9,1728.8,2.5018]
[1693355940763,7.46823465,1728.9,1728.8,6.20531824]
[1693355942054,2.26623465,1728.9,1728.8,6.20531824]
[1693355944559,10.67603465,1729.0,1728.8,6.20531824]
[1693355948063,11.14353014,1729.0,1728.8,6.20531824]
[1693355953465,5.94153014,1729.0,1728.8,11.40731824]
[1693355956472,2.26623465,1728.9,1728.8,11.40731824]
[1693355960269,2.26899975,1728.9,1728.8,11.40731824]
[1693355962469,3.02533301,1728.9,1728.8,11.40731824]
[1693355962969,3.02533301,1728.9,1728.8,9.13738176]
[1693355963266,3.02533301,1728.9,1728.8,2.5018]
[1693355964370,3.78166626,1728.9,1728.8,2.5018]
[1693355965370,13.415295,1729.0,1728.8,2.5018]
[1693355970871,13.415295,1729.0,1728.8,3.93538176]
[1693355971378,4.53799951,1728.9,1728.8,3.93538176]
[1693355975578,4.53799951,1728.9,1728.8,2.5018]
[1693355976379,5.29433277,1728.9,1728.8,2.5018]
[1693355976880,5.29433277,1728.9,1728.8,3.93538176]
[1693355980181,5.29433277,1728.9,1728.8,2.5018]
[1693355980878,5.29433277,1728.9,1728.8,3.93538176]
[1693355989580,5.29433277,1728.9,1728.8,9.13738176]
[1693355989783,4.55383819,1728.9,1728.8,9.13738176]
[1693355992585,4.30113819,1728.9,1728.8,9.13738176]
[1693355997093,5.29433277,1729.0,1728.8,9.13738176]
[1693355997393,5.29433277,1729.0,1728.9,7.8399]
[1693355997587,5.29433277,1729.0,1728.9,10.10983648]
[1693355997988,5.29433277,1729.0,1728.9,13.31763648]
[1693355999295,5.29433277,1729.0,1728.9,10.10983648]
[1693356000796,4.96863277,1729.0,1728.9,10.10983648]
[1693356008498,4.96863277,1729.0,1728.9,10.57829597]
[1693356011301,4.96863277,1729.0,1728.9,5.67045949]
[1693356011503,4.96863277,1729.0,1728.9,0.46845949]
[1693356011703,4.96863277,1729.0,1728.8,7.7038]
[1693356012005,4.55084962,1728.9,1728.8,7.7038]
[1693356012305,11.25266602,1729.1,1728.8,7.7038]
[1693356012505,6.05066602,1729.0,1728.8,7.7038]
[1693356012702,5.30934085,1728.9,1728.8,7.7038]
[1693356013312,5.30934085,1728.9,1728.8,9.13738176]
[1693356016319,6.05066602,1728.9,1728.8,9.13738176]
[1693356016818,6.05066602,1728.9,1728.8,7.7038]
[1693356017519,9.25846602,1729.0,1728.8,9.13738176]
[1693356019123,5.30931775,1728.9,1728.8,9.13738176]
[1693356019324,5.30931775,1728.9,1728.8,7.7038]
[1693356021021,5.30931775,1728.9,1728.8,9.13738176]
[1693356021825,5.30931775,1728.9,1728.8,7.7038]
[1693356022624,5.30931775,1728.9,1728.8,2.5018]
[1693356023026,5.30905483,1728.9,1728.8,2.5018]
[1693356030331,5.30905483,1728.9,1728.8,3.93538176]
[1693356031233,5.30905483,1728.9,1728.8,2.5018]
[1693356032030,10.51105483,1728.9,1728.8,2.5018]
[1693356033726,11.26949123,1728.9,1728.8,2.5018]
[1693356042231,11.26949123,1728.9,1728.6,2.5746]
[1693356042432,7.75603033,1728.7,1728.6,2.5746]
[1693356042634,7.75603033,1728.7,1728.6,3.02717602]
[1693356045841,7.75603033,1728.7,1728.6,5.46737602]
[1693356049343,8.51406872,1728.7,1728.6,5.46737602]
[1693356050445,13.71606872,1728.7,1728.6,5.46737602]
[1693356050638,13.71606872,1728.7,1728.6,5.0148]
[1693356052345,8.4098,1728.7,1728.1,6.3591]
[1693356052546,7.75566814,1728.4,1728.2,2.441]
[1693356052743,4.54786814,1728.3,1728.2,2.441]
[1693356052943,7.75566814,1728.4,1728.2,2.441]
[1693356053445,4.54786814,1728.3,1728.2,2.441]
[1693356053946,7.75566814,1728.4,1728.2,2.441]
[1693356055640,7.75566814,1728.4,1728.2,5.0049]
[1693356057242,3.78644517,1728.3,1728.2,5.0049]
[1693356061846,8.98844517,1728.3,1728.2,5.0049]
[1693356062844,8.98844517,1728.3,1728.2,2.441]
[1693356063045,5.202,1728.3,1728.1,0.45556989]
[1693356063244,8.9859993,1728.2,1728.0,2.474]
[1693356063446,5.202,1728.1,1728.0,2.474]
[1693356063747,8.22918334,1728.1,1728.0,2.474]
[1693356064948,12.01318264,1728.1,1728.0,2.474]
[1693356065147,8.22810468,1728.1,1728.0,2.474]
[1693356065547,3.02610468,1728.1,1728.0,2.474]
[1693356065748,3.02610468,1728.1,1728.0,3.90758176]
[1693356066154,3.02610468,1728.1,1728.0,6.44328176]
[1693356066649,3.02610468,1728.1,1728.0,5.0097]
[1693356071953,3.02610468,1728.1,1728.0,10.2117]
[1693356072449,2.26819175,1728.1,1728.0,10.2117]
[1693356074453,2.26819175,1728.1,1728.0,11.64528176]
[1693356075049,3.7839993,1728.1,1727.8,5.202]
[1693356075254,2.26760371,1727.9,1727.8,2.5572]
[1693356075457,2.26760371,1727.9,1727.6,7.8099]
[1693356075653,3.2078,1727.8,1727.6,10.3729]
[1693356077756,3.2078,1727.8,1727.6,10.83376074]
[1693356081171,3.2078,1727.8,1727.6,12.2673425]
[1693356081470,5.47540371,1728.0,1727.7,7.47193648]
[1693356081767,2.26760371,1728.1,1727.9,5.202]
[1693356082068,2.26760371,1728.1,1728.0,5.202]
[1693356083170,3.02348824,1728.1,1728.0,5.202]
[1693356083570,8.22548824,1728.1,1727.8,10.3212]
[1693356083770,5.47402591,1728.0,1727.8,10.3212]
[1693356089771,5.47402591,1728.0,1727.8,11.75478176]
[1693356090777,5.47402591,1728.0,1727.8,10.3212]
[1693356091176,2.26622591,1727.9,1727.8,10.3212]
[1693356094282,2.26622591,1727.9,1727.8,11.75478176]
[1693356094479,5.47402591,1728.0,1727.8,10.3212]
[1693356094883,2.26622591,1727.9,1727.8,10.3212]
[1693356095378,2.26622591,1727.9,1727.8,11.75478176]
[1693356098080,2.27076874,1727.9,1727.8,11.75478176]
[1693356098285,2.27079358,1727.9,1727.8,11.75478176]
[1693356098486,2.27079394,1727.9,1727.8,11.75478176]
[1693356098686,2.27079394,1727.9,1727.8,10.3212]
[1693356098875,3.02348824,1727.9,1727.8,10.3212]
[1693356099081,6.69877619,1728.0,1727.8,10.3212]
[1693356099588,3.02348824,1727.9,1727.8,10.3212]
[1693356101087,7.45928725,1728.0,1727.8,10.3212]
[1693356101287,3.02820074,1727.9,1727.8,10.3212]
[1693356101485,3.7839993,1727.9,1727.8,10.3212]
[1693356101891,3.7839993,1727.9,1727.8,5.1192]
[1693356102092,3.7839993,1727.9,1727.8,6.55278176]
[1693356105998,3.7867525,1727.9,1727.8,6.55278176]
[1693356106296,8.4098,1728.0,1727.8,6.55278176]
[1693356106697,3.78683397,1727.9,1727.8,6.55278176]
[1693356106996,8.4098,1728.0,1727.8,6.55278176]
[1693356107994,12.95766814,1728.0,1727.8,5.1192]
[1693356109293,4.54786814,1727.9,1727.8,5.1192]
[1693356109499,12.95766814,1728.0,1727.8,6.55278176]
[1693356111806,4.54786814,1727.9,1727.8,6.55278176]
[1693356112194,13.43164238,1728.0,1727.8,6.55278176]
[1693356112398,12.95766814,1728.0,1727.8,6.55278176]
[1693356112598,12.95766814,1728.0,1727.9,2.26993648]
[1693356113199,8.4098,1728.0,1727.9,2.26993648]
[1693356113900,13.71564617,1728.0,1727.9,2.26993648]
[1693356116306,13.71564617,1728.0,1727.8,6.55278176]
[1693356116506,4.54697066,1727.9,1727.8,6.55278176]
[1693356116807,5.30584617,1727.9,1727.8,6.55278176]
[1693356121099,5.30584617,1727.9,1727.8,7.02719201]
[1693356121500,4.55005879,1727.9,1727.8,12.22919201]
[1693356124703,5.30584617,1727.9,1727.8,12.22919201]
[1693356127508,5.26114617,1727.9,1727.8,12.22919201]
[1693356131605,9.8108567,1727.9,1727.8,12.22919201]
[1693356131812,4.54971053,1727.9,1727.8,12.22919201]
[1693356139817,5.3074673,1727.9,1727.8,12.22919201]
[1693356140419,5.3074673,1727.9,1727.8,5.67641025]
[1693356140620,9.27162419,1728.0,1727.8,5.67641025]
[1693356141114,6.06382419,1727.9,1727.8,5.67641025]
[1693356141314,11.26582419,1727.9,1727.7,0.00585095]
[1693356141516,14.47362419,1727.8,1727.7,0.00585095]
[1693356141910,14.47362419,1727.8,1727.3,6.06923173]
[1693356142216,7.7551384,1727.4,1727.2,6.3597]
[1693356142418,7.7551384,1727.4,1727.2,1.1577]
[1693356143017,7.7551384,1727.4,1727.2,1.6161064]
[1693356144118,7.7551384,1727.4,1727.2,2.47275309]
[1693356145125,3.2078,1727.4,1727.2,2.47275309]
[1693356145726,3.78349345,1727.3,1727.2,2.47275309]
[1693356146021,3.78348329,1727.3,1727.2,7.67475309]
[1693356146527,3.78348329,1727.3,1727.2,9.10833485]
[1693356146923,3.78348329,1727.3,1727.2,7.67475309]
[1693356148227,6.99128329,1727.4,1727.2,7.67475309]
[1693356148426,3.78348329,1727.4,1727.3,6.63558176]
[1693356150826,3.78348329,1727.4,1727.3,8.90551824]
[1693356151325,3.78348329,1727.4,1727.3,7.47193648]
[1693356151925,6.21878329,1727.5,1727.3,7.47193648]
[1693356152119,3.78348329,1727.4,1727.3,7.47193648]
[1693356152319,3.02393698,1727.4,1727.3,7.47193648]
[1693356152521,6.21878329,1727.5,1727.3,7.47193648]
[1693356152930,6.99128329,1727.4,1727.3,7.47193648]
[1693356153431,6.21878329,1727.5,1727.3,7.47193648]
[1693356153823,3.02343314,1727.4,1727.3,7.47193648]
[1693356154024,3.02343314,1727.4,1727.3,8.90551824]
[1693356154729,3.02343314,1727.4,1727.3,7.47193648]
[1693356155026,3.7788668,1727.4,1727.3,7.47193648]
[1693356155324,6.9866668,1727.4,1727.3,8.90551824]
[1693356155724,3.7788668,1727.4,1727.3,8.90551824]
[1693356158233,3.7788668,1727.4,1727.3,7.47193648]
[1693356160029,3.7788668,1727.4,1727.3,10.07293648]
[1693356161132,3.7788668,1727.4,1727.3,11.50651824]
[1693356161334,3.7788668,1727.4,1727.3,10.07293648]
[1693356161525,3.7788668,1727.4,1727.3,11.50651824]
[1693356161922,3.02172768,1727.4,1727.3,11.50651824]
[1693356169435,3.02172768,1727.4,1727.3,10.07293648]
[1693356170432,6.22952768,1727.4,1727.3,10.07293648]
[1693356170636,6.22952768,1727.4,1727.3,7.803]
[1693356172437,6.22952768,1727.4,1727.3,5.202]
[1693356174637,8.4098,1727.4,1727.2,0.4584064]
[1693356174833,3.0222638,1727.3,1727.1,10.2878]
[1693356175037,2.26667978,1727.2,1727.1,10.2878]
[1693356175237,2.26667978,1727.2,1727.1,5.202]
[1693356176931,1.68767978,1727.2,1727.1,6.63558176]
[1693356177135,2.9815638,1727.2,1727.1,6.63558176]
[1693356177639,6.1893638,1727.2,1727.1,6.63558176]
[1693356177842,2.4025638,1727.2,1727.1,6.63558176]
[1693356178137,5.0313638,1727.2,1727.1,7.10991697]
[1693356178538,4.9338638,1727.2,1727.1,5.67633521]
[1693356180338,1.7260638,1727.2,1727.1,7.10991697]
[1693356180742,1.7260638,1727.2,1727.1,9.71041697]
[1693356183850,3.7788668,1727.2,1727.1,9.71041697]
[1693356184049,3.7788668,1727.3,1727.1,9.71041697]
[1693356184254,9.5027668,1727.4,1727.2,5.202]
[1693356184558,3.7788668,1727.3,1727.2,6.63558176]
[1693356186553,3.7788668,1727.3,1727.2,9.12108176]
[1693356187752,9.73664016,1727.5,1727.2,9.12108176]
[1693356187952,9.73664016,1727.5,1727.3,2.4318]
[1693356188658,4.53464016,1727.4,1727.3,2.4318]
[1693356189754,5.202,1727.5,1727.3,4.70173648]
[1693356189755,9.73664016,1727.5,1727.3,4.70173648]
[1693356189959,4.53464016,1727.4,1727.3,4.70173648]
[1693356190257,4.53464016,1727.4,1727.3,2.4318]
[1693356190558,13.70021352,1727.4,1727.1,5.67633521]
[1693356190756,4.54522675,1727.3,1727.1,5.202]
[1693356191166,3.2078,1727.2,1727.1,5.202]
[1693356191764,3.2078,1727.2,1727.1,6.63558176]
[1693356192063,3.2078,1727.2,1727.1,5.202]
[1693356192260,7.75302675,1727.2,1727.1,5.202]
[1693356194765,4.54522675,1727.2,1727.1,5.202]
[1693356195363,7.75302675,1727.2,1727.1,5.202]
[1693356195962,3.2078,1727.2,1727.1,5.202]
[1693356196160,7.75178577,1727.2,1727.0,2.5103]
[1693356196359,4.54398577,1727.1,1727.0,2.5103]
[1693356196762,5.29041352,1727.1,1727.0,2.5103]
[1693356197154,4.54270147,1727.1,1727.0,2.5103]
[1693356197364,5.29041352,1727.1,1727.0,2.5103]
[1693356198664,5.29855587,1727.1,1727.0,2.5103]
[1693356198866,11.34474275,1727.1,1727.0,2.5103]
[1693356199367,9.83923439,1727.1,1727.0,2.5103]
[1693356199769,9.83920006,1727.1,1727.0,2.5103]
[1693356205275,9.83920006,1727.1,1727.0,6.21381824]
[1693356205573,5.29855587,1727.1,1727.0,16.61781824]
[1693356207676,4.54064419,1727.2,1727.0,16.61781824]
[1693356207877,4.54064419,1727.2,1727.1,5.202]
[1693356208274,4.54932952,1727.2,1727.1,7.8305]
[1693356211875,4.54932952,1727.2,1727.1,5.202]
[1693356214472,0.00868533,1727.2,1727.1,5.202]
[1693356214972,5.30610355,1727.2,1727.1,5.202]
[1693356219480,5.30610355,1727.2,1727.1,7.8659]
[1693356219980,5.30610355,1727.2,1727.1,8.32358954]
[1693356222377,4.54645788,1727.2,1727.1,8.32358954]
[1693356222782,7.75425788,1727.2,1727.1,8.32358954]
[1693356229386,3.21648533,1727.2,1727.1,8.32358954]
[1693356229587,8.51390355,1727.2,1727.1,8.32358954]
[1693356230288,5.30610355,1727.2,1727.1,8.32358954]
[1693356237498,0.00868533,1727.2,1727.1,8.32358954]
[1693356238297,5.30610355,1727.2,1727.1,8.32358954]
[1693356242500,4.55214373,1727.2,1727.1,8.32358954]
[1693356242803,0.00868533,1727.2,1727.1,9.48138954]
[1693356243006,3.97314373,1727.3,1727.1,9.48138954]
[1693356243307,3.39414373,1727.3,1727.2,5.202]
[1693356243906,2.81524373,1727.3,1727.2,7.8324]
[1693356244304,2.23634373,1727.3,1727.2,7.8324]
[1693356244711,4.71851822,1727.3,1727.2,7.8324]
[1693356245206,4.13961822,1727.3,1727.2,7.8324]
[1693356245805,3.56071822,1727.3,1727.2,7.8324]
[1693356246012,2.98181822,1727.3,1727.2,7.8324]
[1693356246912,2.40291822,1727.3,1727.2,7.8324]
[1693356247312,1.82401822,1727.3,1727.2,7.8324]
[1693356247813,1.24511822,1727.3,1727.2,7.8324]
[1693356248419,0.00868432,1727.4,1727.2,7.8324]
[1693356248420,5.48609843,1727.4,1727.2,7.8324]
[1693356248607,2.6289,1727.5,1727.3,5.202]
[1693356248812,2.6289,1727.5,1727.4,5.202]
[1693356249214,2.05,1727.5,1727.4,6.63558176]
[1693356250808,2.05,1727.5,1727.4,9.23478176]
[1693356253113,5.19638331,1727.6,1727.4,9.23478176]
[1693356253314,5.19638331,1727.6,1727.5,7.47193648]
[1693356253809,2.56288331,1727.6,1727.5,7.47193648]
[1693356258527,8.61462079,1727.6,1727.5,7.47193648]
[1693356260324,4.72470031,1727.6,1727.5,7.47193648]
[1693356260527,4.72470031,1727.6,1727.5,10.10763648]
[1693356263029,6.05173748,1727.8,1727.5,10.10763648]
[1693356263225,6.05173748,1727.8,1727.6,5.202]
[1693356263426,6.05173748,1727.8,1727.7,3.70351824]
[1693356266828,11.25373748,1727.8,1727.5,5.202]
[1693356267027,3.2078,1727.7,1727.5,5.202]
[1693356267221,9.25953748,1727.7,1727.5,5.202]
[1693356267825,6.05173748,1727.6,1727.5,5.202]
[1693356270731,21.04459085,1727.7,1727.5,6.63558176]
[1693356271133,14.23123748,1727.7,1727.5,6.63558176]
[1693356271831,6.05173748,1727.6,1727.5,6.63558176]
[1693356272029,14.23123748,1727.7,1727.5,6.63558176]
[1693356272332,8.1795,1727.7,1727.6,5.202]
[1693356272834,5.767,1727.7,1727.6,5.202]
[1693356273436,12.58035337,1727.7,1727.6,5.202]
[1693356274934,11.81638545,1727.7,1727.6,5.202]
[1693356282341,9.25718545,1727.7,1727.6,7.47193648]
[1693356282538,3.2078,1727.7,1727.6,9.92713648]
[1693356282741,11.3475351,1727.7,1727.6,12.34473648]
[1693356282937,6.04938545,1727.7,1727.6,12.34473648]
[1693356288443,5.29881775,1727.7,1727.6,12.34473648]
[1693356288642,4.72001775,1727.7,1727.6,12.34473648]
[1693356289837,4.54131423,1727.7,1727.6,12.34473648]
[1693356290745,4.54135525,1727.7,1727.6,12.34473648]
[1693356294851,4.54135525,1727.7,1727.6,12.81058997]